bitfinex-derivatives/quotes_SOLF0:USTF0_20240906
["timestamp","ask_amount","ask_price","bid_price","bid_amount"]
[1725646325064,3.963,126.25,126.22,26.6876]
[1725646325462,1.3619,126.3,126.22,22.7239]
[1725646325866,3.9628,126.26,126.23,3.9635]
[1725646327467,3.9624,126.27,126.24,21.31]
[1725646327668,21.31,126.31,126.24,21.31]
[1725646327968,3.9623,126.27,126.25,3.9628]
[1725646328664,3.9623,126.27,126.24,25.2731]
[1725646329064,5.20258194,126.32,126.27,3.9622]
[1725646329258,1.3376,126.32,126.25,21.31]
[1725646329669,5.22146616,126.32,126.27,3.9621]
[1725646330470,5.22146616,126.32,126.25,21.31]
[1725646330471,5.22146616,126.32,126.26,3.9625]
[1725646330968,3.9618,126.29,126.27,3.9623]
[1725646331166,3.9618,126.29,126.25,21.31]
[1725646331871,3.962,126.28,126.24,21.31]
[1725646332064,26.53146616,126.32,126.24,21.31]
[1725646332369,3.9618,126.29,126.26,3.9623]
[1725646332965,26.53146616,126.32,126.25,21.31]
[1725646333471,3.9614,126.3,126.28,3.9618]
[1725646333667,1.3376,126.32,126.25,21.31]
[1725646334172,1.3376,126.32,126.28,3.9618]
[1725646334173,3.9612,126.31,126.28,3.9618]
[1725646334365,4.02093256,126.41,126.27,21.31]
[1725646334671,21.31,126.34,126.28,3.9619]
[1725646334970,25.22077344,126.34,126.28,3.9619]
[1725646335162,3.9612,126.31,126.29,3.9616]
[1725646335368,3.9612,126.31,126.25,21.31]
[1725646336069,3.91077344,126.34,126.27,21.31]
[1725646336266,21.31,126.36,126.28,1.4058]
[1725646336466,3.9606,126.33,126.28,1.4058]
[1725646336870,3.9606,126.33,126.3,3.9612]
[1725646337468,3.9608,126.32,126.3,3.9612]
[1725646338169,3.93891135,126.35,126.31,3.9609]
[1725646338471,21.31,126.37,126.29,21.31]
[1725646338674,21.31,126.37,126.31,3.9609]
[1725646339076,3.9603,126.34,126.29,21.31]
[1725646339372,21.31,126.37,126.29,21.31]
[1725646339876,3.9606,126.33,126.29,25.2715]
[1725646340074,4.0358405,126.39,126.28,4.1258]
[1725646340265,3.9588,126.39,126.34,21.31]
[1725646340464,1.3411,126.4,126.35,21.31]
[1725646340773,1.1219,126.44,126.37,21.31]
[1725646341276,3.9576,126.42,126.37,21.31]
[1725646341472,2.6415,126.45,126.38,21.31]
[1725646341678,2.6415,126.45,126.4,21.31]
[1725646341975,3.9572,126.44,126.4,21.31]
[1725646343579,3.9574,126.43,126.4,21.31]
[1725646344074,25.23529666,126.48,126.4,21.31]
[1725646344273,3.92529666,126.48,126.41,21.31]
[1725646344474,22.598,126.5,126.41,21.31]
[1725646344674,3.9569,126.45,126.41,21.31]
[1725646344872,26.60530917,126.5,126.41,25.27257236]
[1725646345476,26.60530917,126.5,126.42,1.2779]
[1725646345676,3.9563,126.47,126.42,5.2352]
[1725646345871,26.60530917,126.5,126.42,5.2352]
[1725646346073,26.60530917,126.5,126.43,21.31]
[1725646347074,3.9563,126.47,126.43,21.31]
[1725646347280,26.60530917,126.5,126.43,21.31]
[1725646347673,26.60530917,126.5,126.42,1.2779]
[1725646348271,3.9569,126.45,126.42,1.2779]
[1725646348668,3.9578,126.42,126.38,21.31]
[1725646348870,21.31,126.46,126.38,21.31]
[1725646349079,21.31,126.46,126.39,3.9585]
[1725646349376,21.31,126.48,126.4,21.31]
[1725646349677,21.31,126.48,126.4,25.268]
[1725646350379,26.60530917,126.5,126.42,21.31]
[1725646350681,26.60530917,126.5,126.42,25.20694033]
[1725646350878,3.9566,126.46,126.42,29.16454033]
[1725646352178,3.9567,126.45,126.42,25.20694033]
[1725646352576,21.31,126.48,126.4,21.31]
[1725646352982,21.31,126.48,126.41,1.3946]
[1725646353782,5.29530917,126.5,126.42,3.97184128]
[1725646353984,5.29530917,126.5,126.42,21.31]
[1725646354182,0.38934488,126.49,126.42,21.31]
[1725646354384,3.9564,126.46,126.42,25.2675]
[1725646354579,3.9564,126.46,126.43,3.93225745]
[1725646354776,5.29530917,126.5,126.43,3.93225745]
[1725646355374,3.9566,126.46,126.43,3.93225745]
[1725646355576,26.60530917,126.5,126.42,29.20757422]
[1725646355785,0.38934722,126.49,126.42,25.25017422]
[1725646355986,3.9565,126.46,126.42,29.20767422]
[1725646356878,3.9561,126.47,126.44,3.9569]
[1725646357078,3.9561,126.47,126.43,21.31]
[1725646357485,3.9561,126.47,126.44,3.9569]
[1725646358185,21.31,126.45,126.33,7.931]
[1725646358389,1.4106,126.46,126.35,1.351]
[1725646358683,21.31,126.49,126.4,21.31]
[1725646358888,22.7206,126.5,126.42,21.31]
[1725646359083,22.7206,126.5,126.41,3.98094556]
[1725646359276,21.31,126.48,126.4,21.31]
[1725646359481,21.31,126.48,126.41,3.92671572]
[1725646359984,21.31,126.48,126.41,5.27771572]
[1725646360188,21.31,126.48,126.41,1.351]
[1725646360482,21.31,126.45,126.34,1.3848]
[1725646360687,3.95600775,126.44,126.36,21.31]
[1725646360886,1.1215,126.47,126.37,25.269]
[1725646361089,22.4315,126.47,126.37,21.31]
[1725646361285,21.31,126.46,126.37,21.31]
[1725646361788,1.3382,126.45,126.37,21.31]
[1725646361987,3.9578,126.42,126.37,21.31]
[1725646362194,1.3382,126.45,126.37,21.31]
[1725646362688,3.9581,126.41,126.37,21.31]
[1725646363082,3.9581,126.41,126.37,25.2691]
[1725646364088,3.9581,126.41,126.38,26.61]
[1725646364691,3.9582,126.4,126.38,26.61]
[1725646366283,30.49171181,126.44,126.35,1.351]
[1725646366490,26.61,126.44,126.35,5.2462692]
[1725646366686,3.9593,126.37,126.35,5.2462692]
[1725646367887,3.9595,126.36,126.35,5.2462692]
[1725646368085,3.9595,126.36,126.35,1.351]
[1725646368881,3.9592,126.37,126.35,1.351]
[1725646371183,1.3382,126.45,126.36,26.61]
[1725646371386,1.4158,126.46,126.41,26.61]
[1725646371387,3.96422306,126.46,126.41,26.61]
[1725646371585,3.9575,126.43,126.41,30.61738993]
[1725646372390,3.9576,126.42,126.41,26.61]
[1725646376098,4.01135019,126.46,126.41,30.5595898]
[1725646376398,26.61,126.5,126.41,26.61]
[1725646376599,0.38934818,126.49,126.41,26.61]
[1725646376898,3.9575,126.43,126.41,30.49109752]
[1725646377808,3.9576,126.42,126.41,26.61]
[1725646379903,3.98680526,126.46,126.4,1.3115]
[1725646380110,26.61,126.48,126.4,1.3115]
[1725646380600,3.9015,126.51,126.41,30.51169077]
[1725646380791,0.38935198,126.5,126.41,30.51169077]
[1725646380996,3.9571,126.44,126.41,30.51169077]
[1725646381200,3.9571,126.44,126.41,34.46959077]
[1725646381999,30.5115,126.51,126.41,30.51169077]
[1725646382199,0.38937022,126.5,126.43,26.61]
[1725646382394,3.9015,126.51,126.43,26.61]
[1725646382602,3.9562,126.47,126.44,3.9569]
[1725646383195,2.7804,126.51,126.45,3.9564]
[1725646383594,1.3735,126.51,126.45,26.61]
[1725646384200,1.3735,126.51,126.45,30.5665]
[1725646384703,4.04610746,126.54,126.48,30.5655]
[1725646384904,4.04610746,126.54,126.48,26.61]
[1725646385104,1.3979,126.57,126.49,4.00858027]
[1725646385407,0.38919019,126.56,126.49,4.00858027]
[1725646385708,3.9543,126.53,126.49,7.96378027]
[1725646386006,5.43994104,126.57,126.49,4.00858027]
[1725646386206,3.9544,126.53,126.49,3.9552]
[1725646386600,26.61,126.56,126.47,2.7085]
[1725646386902,26.61,126.54,126.47,1.3414]
[1725646387807,0.38924906,126.53,126.45,3.9565]
[1725646388006,1.73154906,126.53,126.45,3.9565]
[1725646388198,3.9556,126.49,126.45,3.9565]
[1725646390310,1.3423,126.53,126.46,3.9563]
[1725646390807,26.61,126.54,126.47,3.9558]
[1725646391211,26.61,126.54,126.46,26.61]
[1725646391411,3.9553,126.5,126.46,30.5662]
[1725646391605,26.61,126.54,126.46,30.5662]
[1725646391606,26.61,126.54,126.46,26.61]
[1725646391908,3.9556,126.49,126.46,26.61]
[1725646392309,3.9556,126.49,126.43,1.3937]
[1725646392310,3.8800552,126.5,126.44,26.61]
[1725646392512,3.9559,126.48,126.44,26.61]
[1725646392703,3.9559,126.48,126.45,3.9564]
[1725646392905,3.88045088,126.5,126.44,26.61]
[1725646393210,3.9556,126.49,126.46,26.61]
[1725646393407,3.9556,126.49,126.46,30.5662]
[1725646393600,26.61,126.54,126.46,26.61]
[1725646393601,3.9552,126.5,126.46,26.61]
[1725646393805,26.61,126.54,126.46,26.61]
[1725646394006,0.38981449,126.53,126.47,21.29]
[1725646394214,21.29,126.53,126.45,21.29]
[1725646394400,21.29,126.52,126.43,1.3937]
[1725646394600,3.9573,126.43,126.4,103.98738395]
[1725646394801,3.9573,126.43,126.4,108.01107162]
[1725646395006,3.9573,126.43,126.4,111.96917162]
[1725646395405,2.6976,126.51,126.4,108.01107162]
[1725646395406,3.9568,126.45,126.4,108.01107162]
[1725646395607,4.02448777,126.47,126.42,3.9574]
[1725646395906,26.59,126.5,126.42,3.9574]
[1725646396102,30.45931917,126.5,126.43,3.9572]
[1725646396513,30.45931917,126.5,126.41,30.5954]
[1725646396814,26.59,126.48,126.41,1.3667]
[1725646397003,26.59,126.46,126.35,29.2521]
[1725646397204,26.59,126.44,126.35,33.2117]
[1725646397401,26.59,126.44,126.36,3.9306741]
[1725646397810,3.9585,126.4,126.36,7.8900741]
[1725646401109,3.9585,126.39,126.36,7.8900741]
[1725646406320,26.59,126.44,126.36,3.9306741]
[1725646406513,26.59,126.44,126.35,29.2521]
[1725646407017,26.59,126.44,126.35,33.21846731]
[1725646407213,3.9584,126.4,126.38,3.9587]
[1725646418230,3.9584,126.4,126.37,25.249]
[1725646418725,3.9587,126.39,126.37,25.249]
[1725646418926,3.89183821,126.41,126.35,23.9521]
[1725646419127,3.89183821,126.41,126.35,1.3667]
[1725646419128,21.29,126.41,126.35,1.3667]
[1725646419333,3.9594,126.37,126.35,1.3667]
[1725646419729,3.9594,126.37,126.34,5.2938]
[1725646422939,3.9597,126.36,126.34,1.3339]
[1725646423139,4.01182467,126.4,126.34,1.3339]
[1725646423341,21.29,126.41,126.33,25.34023618]
[1725646423739,3.9597,126.36,126.33,29.30043618]
[1725646424839,3.9597,126.36,126.34,3.9601]
[1725646425337,3.9597,126.36,126.33,25.34023618]
[1725646425534,3.9597,126.36,126.33,29.30053618]
[1725646426141,1.3495,126.45,126.34,21.29]
[1725646426337,22.6395,126.45,126.37,21.29]
[1725646426830,21.29,126.43,126.35,22.5983]
[1725646427541,3.9584,126.4,126.37,3.9591]
[1725646428735,3.9586,126.39,126.37,3.9591]
[1725646430644,3.9581,126.41,126.38,3.9586]
[1725646431148,3.9579,126.42,126.37,21.29]
[1725646431845,3.958,126.41,126.38,3.9587]
[1725646433041,1.3495,126.45,126.37,21.29]
[1725646434033,3.9581,126.41,126.38,3.9586]
[1725646436947,1.3495,126.45,126.39,3.9584]
[1725646436948,3.9578,126.42,126.39,3.9584]
[1725646437343,1.3495,126.45,126.39,3.9584]
[1725646437645,1.3495,126.45,126.37,21.29]
[1725646437848,1.3495,126.45,126.4,3.958]
[1725646438347,3.958,126.41,126.39,3.9584]
[1725646438544,1.3495,126.45,126.36,1.4028]
[1725646438545,21.29,126.44,126.36,1.4028]
[1725646439049,3.9584,126.4,126.36,1.4028]
[1725646439350,21.29,126.44,126.37,21.29]
[1725646439743,3.9582,126.41,126.38,3.9587]
[1725646440154,21.29,126.44,126.38,3.9587]
[1725646440348,3.9582,126.4,126.38,3.9587]
[1725646440645,1.3495,126.45,126.39,25.2484]
[1725646440848,3.9574,126.43,126.39,21.29]
[1725646441049,3.9574,126.43,126.41,3.9577]
[1725646441243,25.21156982,126.48,126.41,3.91805975]
[1725646441640,3.92156982,126.48,126.42,21.29]
[1725646441843,21.29,126.55,126.46,21.29]
[1725646442044,21.29,126.55,126.49,3.9552]
[1725646442245,4.00319192,126.54,126.49,21.29]
[1725646442446,3.954,126.54,126.5,21.29]
[1725646442640,3.954,126.54,126.5,25.2449]
[1725646442851,23.9678,126.58,126.5,21.29]
[1725646443147,2.6778,126.58,126.51,3.9546]
[1725646443540,3.9532,126.56,126.5,21.29]
[1725646443944,3.9532,126.56,126.52,3.9544]
[1725646444139,3.9533,126.56,126.5,21.29]
[1725646444545,3.9533,126.56,126.51,3.9545]
[1725646444546,3.9532,126.56,126.51,3.9545]
[1725646444748,2.6778,126.58,126.51,3.9545]
[1725646444941,2.6778,126.58,126.5,21.29]
[1725646445252,3.9539,126.54,126.5,25.245]
[1725646447344,2.6778,126.58,126.5,21.29]
[1725646447953,3.9537,126.55,126.52,21.29]
[1725646448251,1.3918,126.58,126.52,21.29]
[1725646448458,3.9534,126.56,126.52,25.2443]
[1725646449155,25.33625888,126.61,126.54,25.2436]
[1725646449355,21.29,126.61,126.54,25.2436]
[1725646449754,3.9531,126.57,126.54,25.2436]
[1725646449953,3.9531,126.57,126.54,21.29]
[1725646450551,3.9532,126.56,126.54,21.29]
[1725646450952,3.9532,126.56,126.53,3.954]
[1725646451153,3.9535,126.55,126.52,25.2443]
[1725646451353,25.2296005,126.61,126.52,21.29]
[1725646451651,25.2296005,126.61,126.53,3.9539]
[1725646451853,25.2296005,126.61,126.52,21.29]
[1725646452055,25.2296005,126.61,126.55,21.29]
[1725646452252,3.9531,126.57,126.55,21.29]
[1725646453056,3.9532,126.56,126.55,21.29]
[1725646456953,3.9536,126.55,126.53,25.244]
[1725646459159,25.2296005,126.61,126.53,25.244]
[1725646459160,3.9533,126.56,126.54,21.29]
[1725646459756,3.9533,126.56,126.54,25.2438]
[1725646459959,3.953,126.57,126.54,21.29]
[1725646460264,21.29,126.63,126.56,21.29]
[1725646460463,3.9528,126.58,126.56,21.29]
[1725646460665,3.93200205,126.6,126.56,21.29]
[1725646460867,21.29,126.63,126.56,21.29]
[1725646461070,3.9529,126.57,126.56,21.29]
[1725646462677,3.89403462,126.61,126.56,21.29]
[1725646462968,2.4995,126.64,126.56,21.29]
[1725646463165,3.9522,126.6,126.57,3.9527]
[1725646463466,3.9522,126.6,126.58,21.29]
[1725646464461,3.9522,126.6,126.58,25.2426]
[1725646464665,3.9522,126.6,126.58,21.29]
[1725646464972,1.1184,126.69,126.55,5.2515913]
[1725646464973,22.4084,126.69,126.59,21.29]
[1725646465260,22.4084,126.69,126.55,1.3362]
[1725646465261,3.9512,126.63,126.6,21.29]
[1725646465968,3.9512,126.63,126.6,25.2418]
[1725646466657,3.9512,126.63,126.6,21.29]
[1725646467462,21.29,126.66,126.6,21.29]
[1725646467463,3.9514,126.62,126.6,21.29]
[1725646468567,21.29,126.66,126.6,21.29]
[1725646468762,22.6961,126.68,126.6,21.29]
[1725646469667,3.9514,126.62,126.6,21.29]
[1725646471971,3.9512,126.63,126.6,25.2419]
[1725646472165,22.6961,126.68,126.6,25.2419]
[1725646472467,21.29,126.66,126.58,21.29]
[1725646472667,21.29,126.66,126.59,3.90254815]
[1725646472872,21.29,126.66,126.55,1.3362]
[1725646473173,21.29,126.66,126.57,21.29]
[1725646473368,21.29,126.66,126.59,21.29]
[1725646473669,21.29,126.66,126.59,25.242]
[1725646473874,21.29,126.66,126.55,1.3362]
[1725646473875,1.4061,126.68,126.61,21.29]
[1725646474074,9.9061,126.68,126.63,8.5]
[1725646474275,3.9507,126.64,126.63,8.5]
[1725646474885,3.9512,126.63,126.6,7.97333792]
[1725646475076,3.9512,126.63,126.62,8.5]
[1725646476078,3.9512,126.63,126.61,21.24]
[1725646477077,3.9513,126.62,126.61,21.24]
[1725646477681,3.9512,126.63,126.61,21.24]
[1725646477983,21.24,126.67,126.59,21.24]
[1725646478281,3.9516,126.62,126.59,25.1921]
[1725646479180,21.24,126.67,126.59,21.24]
[1725646479482,21.24,126.65,126.58,3.9525]
[1725646479673,21.24,126.63,126.55,1.3362]
[1725646479875,29.1412,126.65,126.56,3.95907782]
[1725646479876,21.24,126.62,126.56,3.95907782]
[1725646480081,21.24,126.63,126.56,25.19907782]
[1725646480281,3.9523,126.59,126.56,29.15217782]
[1725646481183,3.9521,126.6,126.57,25.1928]
[1725646484090,3.9524,126.59,126.57,21.24]
[1725646484773,3.9524,126.59,126.57,25.1928]
[1725646485380,32.99750623,126.65,126.57,21.24]
[1725646485974,3.9525,126.59,126.57,21.24]
[1725646486581,21.24,126.63,126.56,21.24]
[1725646486789,21.24,126.63,126.56,25.18507601]
[1725646487088,7.9016,126.64,126.58,21.24]
[1725646487291,3.85630623,126.65,126.58,21.24]
[1725646487485,29.1396,126.67,126.58,21.24]
[1725646487691,29.1396,126.67,126.58,25.1926]
[1725646487888,33.03763081,126.67,126.58,25.1926]
[1725646488195,3.9521,126.6,126.58,25.1926]
[1725646488393,3.9521,126.6,126.58,21.24]
[1725646488594,3.9518,126.61,126.58,21.24]
[1725646488890,33.03763081,126.67,126.58,25.1925]
[1725646489682,7.9007,126.66,126.58,21.24]
[1725646489885,21.24,126.65,126.58,21.24]
[1725646490790,3.9523,126.59,126.58,21.24]
[1725646490989,3.9523,126.59,126.56,25.18507601]
[1725646491291,3.9523,126.59,126.56,29.13797601]
[1725646491488,3.9523,126.59,126.56,25.18507601]
[1725646492294,3.9526,126.58,126.56,25.18507601]
[1725646492493,21.24,126.65,126.56,29.13807601]
[1725646492699,1.2999,126.64,126.56,29.13807601]
[1725646492988,3.9525,126.59,126.56,29.13807601]
[1725646494398,3.9526,126.58,126.56,29.13807601]
[1725646495199,1.2999,126.64,126.56,29.13807601]
[1725646495200,3.9524,126.59,126.57,3.9527]
[1725646495901,3.9524,126.59,126.58,8.5]
[1725646500201,8.5,126.63,126.55,1.3362]
[1725646500395,8.5,126.63,126.58,8.5]
[1725646500699,9.7999,126.64,126.58,8.5]
[1725646501097,3.9524,126.59,126.57,3.9528]
[1725646501294,7.9007,126.66,126.59,3.9521]
[1725646501601,2.5104,126.7,126.65,8.5]
[1725646501796,4.00398613,126.7,126.65,3.9504]
[1725646502002,1.285,126.72,126.69,8.5]
[1725646502197,3.9488,126.7,126.69,8.5]
[1725646502398,7.83259142,126.7,126.69,8.5]
[1725646503696,3.88379142,126.7,126.65,8.0269]
[1725646503896,3.88379142,126.7,126.65,1.2789]
[1725646503897,8.5,126.7,126.65,1.2789]
[1725646504097,3.95100557,126.69,126.65,1.2789]
[1725646504404,3.9497,126.68,126.65,26.4691]
[1725646504597,4.00224196,126.69,126.65,22.5189]
[1725646504801,1.285,126.72,126.63,29.09120924]
[1725646504802,3.95,126.67,126.63,29.09120924]
[1725646505099,22.525,126.72,126.6,21.24]
[1725646505100,4.047282,126.69,126.62,3.89793871]
[1725646505302,4.047282,126.69,126.61,1.3372]
[1725646505303,3.95,126.67,126.64,21.24]
[1725646505805,3.9508,126.64,126.62,21.24]
[1725646505997,25.09447903,126.7,126.62,21.24]
[1725646506306,25.09447903,126.7,126.62,25.21300544]
[1725646506999,3.9501,126.66,126.64,21.24]
[1725646507306,3.85447903,126.7,126.64,21.24]
[1725646507507,3.9503,126.66,126.64,21.24]
[1725646507710,3.9503,126.66,126.62,5.31740544]
[1725646507711,3.92006365,126.67,126.62,26.55740544]
[1725646508002,21.24,126.71,126.62,26.55740544]
[1725646508308,3.9506,126.65,126.62,30.50860544]
[1725646508708,21.24,126.7,126.62,22.5844]
[1725646509404,21.24,126.7,126.62,26.5219902]
[1725646509807,3.86290086,126.71,126.63,3.951]
[1725646510009,22.525,126.72,126.64,21.24]
[1725646510401,1.285,126.72,126.65,21.24]
[1725646510604,31.6456,126.75,126.67,21.24]
[1725646510810,3.9489,126.7,126.67,25.1896]
[1725646511510,3.9492,126.69,126.67,21.24]
[1725646511716,3.97545933,126.71,126.65,21.24]
[1725646511905,21.24,126.73,126.65,21.24]
[1725646512212,3.9492,126.69,126.66,5.3662]
[1725646512614,3.9495,126.68,126.66,1.4163]
[1725646512807,3.87945092,126.7,126.66,1.4163]
[1725646513113,21.24,126.73,126.66,1.4163]
[1725646513307,3.9497,126.68,126.66,1.4163]
[1725646513916,3.9492,126.69,126.67,21.24]
[1725646514111,3.8818215,126.71,126.66,1.4163]
[1725646514306,21.24,126.73,126.66,1.4163]
[1725646514507,3.9496,126.68,126.66,1.4163]
[1725646516318,23.7504,126.75,126.66,22.6563]
[1725646516505,116.89612954,126.76,126.69,21.24]
[1725646516816,3.9484,126.72,126.69,25.189]
[1725646517318,3.9494,126.69,126.67,22.6466]
[1725646517610,21.24,126.75,126.67,22.6466]
[1725646517811,3.9491,126.7,126.67,26.5962]
[1725646518404,21.24,126.75,126.66,1.4163]
[1725646518607,21.24,126.75,126.64,1.3345]
[1725646518608,21.24,126.71,126.64,1.3345]
[1725646518811,25.24081989,126.71,126.64,1.3345]
[1725646519008,4.00081989,126.71,126.64,22.5745]
[1725646519214,21.24,126.72,126.64,22.5745]
[1725646519517,3.9497,126.68,126.65,3.9503]
[1725646519707,3.87401666,126.69,126.64,22.5745]
[1725646519907,21.24,126.72,126.64,22.5745]
[1725646519908,22.5212,126.72,126.64,22.5745]
[1725646520122,3.9502,126.66,126.64,22.5745]
[1725646520514,3.89139778,126.69,126.64,22.5745]
[1725646520813,22.5212,126.72,126.64,22.5745]
[1725646521324,3.9501,126.67,126.64,26.5252]
[1725646521911,3.9502,126.66,126.64,26.5252]
[1725646522112,3.9502,126.66,126.64,22.5745]
[1725646523219,3.9504,126.65,126.64,22.5745]
[1725646523518,21.24,126.67,126.54,7.9074]
[1725646523709,21.24,126.67,126.46,229.0]
[1725646523710,3.9521,126.6,126.58,2.6528]
[1725646523924,4.04003318,126.62,126.58,1.3739]
[1725646524220,21.24,126.62,126.55,25.26619745]
[1725646524417,3.953,126.57,126.55,21.24]
[1725646524620,21.24,126.6,126.52,3.90009465]
[1725646524813,21.24,126.59,126.51,21.24]
[1725646525012,21.24,126.59,126.52,7.86190548]
[1725646525013,3.9537,126.55,126.52,7.86190548]
[1725646526125,1.2913,126.61,126.53,3.9539]
[1725646526422,3.93606755,126.62,126.54,26.59]
[1725646526621,3.9521,126.6,126.57,3.9529]
[1725646526921,26.59,126.65,126.57,5.2441]
[1725646526922,3.885073,126.65,126.57,5.2441]
[1725646527224,3.9519,126.61,126.57,5.2441]
[1725646527523,3.86570298,126.62,126.57,1.2912]
[1725646527723,3.9521,126.6,126.57,1.2912]
[1725646527925,3.9521,126.6,126.57,5.2439]
[1725646528713,26.59,126.65,126.57,1.2912]
[1725646528926,26.59,126.63,126.52,26.59]
[1725646529225,3.9531,126.57,126.54,3.9537]
[1725646530322,3.9533,126.56,126.54,3.9537]
[1725646530719,3.9531,126.57,126.54,3.9537]
[1725646531316,3.94807199,126.59,126.5,1.3335]
[1725646531317,3.9539,126.54,126.5,1.3335]
[1725646531617,3.9539,126.54,126.49,2.6713]
[1725646531618,3.94807199,126.59,126.49,1.3404]
[1725646531823,26.59,126.56,126.49,1.3404]
[1725646532023,3.9551,126.5,126.49,1.3404]
[1725646532223,30.55309721,126.56,126.49,1.3404]
[1725646532625,3.955,126.51,126.49,1.3404]
[1725646532827,30.55309721,126.56,126.49,1.3404]
[1725646533015,30.55309721,126.56,126.47,26.59]
[1725646533220,3.955,126.51,126.47,30.5458]
[1725646533525,26.59,126.54,126.46,1.2791]
[1725646533731,3.9553,126.5,126.46,5.2353]
[1725646534319,3.9554,126.49,126.46,5.2353]
[1725646534526,3.9554,126.49,126.46,5.1353]
[1725646534720,30.55309721,126.56,126.47,26.59]
[1725646534924,3.96309721,126.56,126.47,26.59]
[1725646535118,26.59,126.57,126.49,26.59]
[1725646535329,3.9544,126.53,126.49,30.5453]
[1725646536021,4.04275634,126.54,126.49,30.5453]
[1725646536223,26.59,126.57,126.49,30.5453]
[1725646536629,3.9544,126.53,126.49,30.5453]
[1725646537924,3.9545,126.52,126.49,30.5453]
[1725646538525,3.93988722,126.57,126.49,26.59]
[1725646538829,3.8339,126.58,126.49,26.59]
[1725646539032,3.954,126.54,126.51,3.9548]
[1725646540021,3.9542,126.53,126.5,3.955]
[1725646540431,3.9539,126.54,126.49,26.59]
[1725646540731,3.9539,126.54,126.51,3.9546]
[1725646541321,3.9534,126.56,126.53,3.954]
[1725646543236,3.9535,126.55,126.53,3.954]
[1725646544828,3.9533,126.56,126.53,3.954]
[1725646545232,3.9533,126.56,126.52,31.77790953]
[1725646545233,3.9536,126.55,126.52,35.73220953]
[1725646545434,3.85834967,126.57,126.46,1.1791]
[1725646545731,26.59,126.57,126.49,26.59]
[1725646545931,3.9543,126.53,126.5,3.9549]
[1725646546729,3.954,126.54,126.51,3.9547]
[1725646547640,26.59,126.59,126.52,3.9543]
[1725646547940,26.59,126.59,126.49,26.59]
[1725646548138,30.61043738,126.59,126.52,3.9545]
[1725646548740,3.9538,126.54,126.52,3.9545]
[1725646549339,3.9138,126.54,126.52,3.9545]
[1725646549534,3.9138,126.54,126.51,3.97929949]
[1725646549535,4.02043738,126.59,126.53,3.954]
[1725646549729,1.3117,126.61,126.54,26.59]
[1725646549934,3.9522,126.6,126.56,30.5429]
[1725646550743,3.9522,126.6,126.57,3.9527]
[1725646551236,1.2881,126.65,126.59,3.9522]
[1725646551843,3.9512,126.63,126.6,3.952]
[1725646552039,102.17557709,126.68,126.6,26.59]
[1725646552241,102.17557709,126.68,126.61,26.59]
[1725646552633,102.17557709,126.68,126.61,30.49084515]
[1725646552839,1.2793,126.71,126.63,26.59]
[1725646553041,3.9494,126.69,126.64,1.3845]
[1725646553238,1.2793,126.76,126.67,26.59]
[1725646553436,26.59,126.8,126.66,26.59]
[1725646553734,0.3922381,126.79,126.72,26.59]
[1725646553935,0.39220317,126.81,126.71,26.59]
[1725646554136,3.9469,126.77,126.72,3.9482]